[Event "*** Titled Tuesday Blitz"]
[Site "Chess.com"]
[Date "2020.05.12"]
[Round "1"]
[White "HarryCun"]
[Black "Papa12341234"]
[Result "0-1"]
[WhiteElo "2175"]
[BlackElo "2527"]
[TimeControl "180+1"]
[EndTime "10:01:23 PDT"]
[Termination "Papa12341234 won by resignation"]

1. Nf3 {[%clk 0:03:00.9]} 1... Nf6 {[%clk 0:02:59.9]} 2. g3 {[%clk 0:03:01.8]}
2... g6 {[%clk 0:03:00.3]} 3. Bg2 {[%clk 0:03:02.2]} 3... Bg7 {[%clk 0:03:01]}
4. O-O {[%clk 0:03:02.1]} 4... O-O {[%clk 0:03:01.7]} 5. d3 {[%clk 0:03:02.2]}
5... d5 {[%clk 0:03:02.3]} 6. Nbd2 {[%clk 0:03:02.6]} 6... Nc6 {[%clk
0:03:02.3]} 7. e4 {[%clk 0:03:02.6]} 7... e5 {[%clk 0:03:03]} 8. Re1 {[%clk
0:03:02.1]} 8... dxe4 {[%clk 0:03:02.4]} 9. dxe4 {[%clk 0:03:02.6]} 9... h6
{[%clk 0:03:02.3]} 10. h3 {[%clk 0:03:02.5]} 10... Be6 {[%clk 0:03:02.5]} 11. g4
{[%clk 0:03:02.6]} 11... Qd7 {[%clk 0:03:02.5]} 12. b3 {[%clk 0:03:02.3]} 12...
h5 {[%clk 0:03:02.7]} 13. Ng5 {[%clk 0:02:56.9]} 13... hxg4 {[%clk 0:03:02.7]}
14. Nxe6 {[%clk 0:02:56.7]} 14... Qxe6 {[%clk 0:03:03.6]} 15. h4 {[%clk
0:02:56.9]} 15... Nh5 {[%clk 0:03:02.4]} 16. Bb2 {[%clk 0:02:55.7]} 16... Bf6
{[%clk 0:03:01.2]} 17. Nc4 {[%clk 0:02:51.9]} 17... Bxh4 {[%clk 0:03:00.4]} 18.
Qd5 {[%clk 0:02:51.3]} 18... Qf6 {[%clk 0:02:55.8]} 19. Re2 {[%clk 0:02:41.2]}
19... Nf4 {[%clk 0:02:55.5]} 20. Rd2 {[%clk 0:02:40.4]} 20... Nxd5 {[%clk
0:02:55.5]} 0-1

[Event "*** Titled Tuesday Blitz"]
[Site "Chess.com"]
[Date "2020.05.12"]
[Round "1"]
[White "chessplayer9919"]
[Black "mariangie523"]
[Result "1-0"]
[WhiteElo "2493"]
[BlackElo "2053"]
[TimeControl "180+1"]
[EndTime "10:01:36 PDT"]
[Termination "chessplayer9919 won by resignation"]

1. d4 {[%clk 0:03:00.9]} 1... Nf6 {[%clk 0:02:41.2]} 2. c4 {[%clk 0:03:00.7]}
2... c5 {[%clk 0:02:40.7]} 3. d5 {[%clk 0:02:59.4]} 3... b5 {[%clk 0:02:40.2]}
4. cxb5 {[%clk 0:03:00.3]} 4... a6 {[%clk 0:02:38.2]} 5. b6 {[%clk 0:03:00.3]}
5... d6 {[%clk 0:02:36.9]} 6. Nc3 {[%clk 0:03:00.5]} 6... g6 {[%clk 0:02:37.3]}
7. e4 {[%clk 0:02:58.6]} 7... Bg7 {[%clk 0:02:36.3]} 8. Nf3 {[%clk 0:02:58.6]}
8... O-O {[%clk 0:02:35.1]} 9. Bd3 {[%clk 0:02:56.2]} 9... Qxb6 {[%clk
0:02:34.9]} 10. O-O {[%clk 0:02:56]} 10... Nbd7 {[%clk 0:02:35]} 11. Nd2 {[%clk
0:02:55.7]} 11... Ng4 {[%clk 0:02:32.7]} 12. Qxg4 {[%clk 0:02:54.1]} 12... Ne5
{[%clk 0:02:28.3]} 13. Qe2 {[%clk 0:02:54.1]} 13... a5 {[%clk 0:02:20.9]} 14.
Nc4 {[%clk 0:02:52.6]} 1-0

[Event "*** Titled Tuesday Blitz"]
[Site "Chess.com"]
[Date "2020.05.12"]
[Round "1"]
[White "WildBizon"]
[Black "DanielTitichoca"]
[Result "1-0"]
[WhiteElo "2675"]
[BlackElo "2346"]
[TimeControl "180+1"]
[EndTime "10:01:48 PDT"]
[Termination "WildBizon won by resignation"]

1. e4 {[%clk 0:03:00.9]} 1... c5 {[%clk 0:03:00.2]} 2. Nf3 {[%clk 0:02:59.9]}
2... d6 {[%clk 0:03:00.6]} 3. d4 {[%clk 0:02:59.7]} 3... cxd4 {[%clk 0:03:01.3]}
4. Nxd4 {[%clk 0:03:00.4]} 4... Nf6 {[%clk 0:03:01.8]} 5. Nc3 {[%clk 0:03:00.2]}
5... a6 {[%clk 0:03:02.4]} 6. h3 {[%clk 0:02:59.4]} 6... e6 {[%clk 0:02:59.5]}
7. g4 {[%clk 0:02:58.8]} 7... h6 {[%clk 0:03:00.2]} 8. Bg2 {[%clk 0:02:58.2]}
8... g5 {[%clk 0:02:56.5]} 9. Be3 {[%clk 0:02:54.7]} 9... Nfd7 {[%clk
0:02:54.2]} 10. Qe2 {[%clk 0:02:54.2]} 10... Ne5 {[%clk 0:02:54.5]} 11. O-O-O
{[%clk 0:02:53.7]} 11... Nbd7 {[%clk 0:02:54.3]} 12. h4 {[%clk 0:02:51.5]} 12...
gxh4 {[%clk 0:02:51.9]} 13. f4 {[%clk 0:02:50.3]} 13... Ng6 {[%clk 0:02:50.4]}
14. f5 {[%clk 0:02:49.5]} 14... e5 {[%clk 0:02:36]} 15. fxg6 {[%clk 0:02:44.3]}
15... exd4 {[%clk 0:02:34.8]} 16. gxf7+ {[%clk 0:02:40.3]} 16... Kxf7 {[%clk
0:02:33.7]} 17. Bxd4 {[%clk 0:02:41.2]} 17... Rg8 {[%clk 0:02:33.1]} 18. Qc4+
{[%clk 0:02:38]} 1-0

[Event "*** Titled Tuesday Blitz"]
[Site "Chess.com"]
[Date "2020.05.12"]
[Round "1"]
[White "BogdanBelyakov89"]
[Black "warmoatmeal"]
[Result "1-0"]
[WhiteElo "2552"]
[BlackElo "2213"]
[TimeControl "180+1"]
[EndTime "10:01:52 PDT"]
[Termination "BogdanBelyakov89 won by resignation"]

1. e4 {[%clk 0:03:00.9]} 1... c6 {[%clk 0:02:59.5]} 2. d4 {[%clk 0:03:00.6]}
2... d5 {[%clk 0:02:59.8]} 3. exd5 {[%clk 0:03:00.3]} 3... cxd5 {[%clk
0:03:00.7]} 4. c4 {[%clk 0:02:59]} 4... Nf6 {[%clk 0:03:00.9]} 5. Nc3 {[%clk
0:02:56.8]} 5... e6 {[%clk 0:03:00.8]} 6. Nf3 {[%clk 0:02:55.7]} 6... Be7 {[%clk
0:03:00.8]} 7. cxd5 {[%clk 0:02:54.7]} 7... Nxd5 {[%clk 0:03:01.7]} 8. Bd3
{[%clk 0:02:53.4]} 8... Nc6 {[%clk 0:02:57.9]} 9. O-O {[%clk 0:02:53]} 9... a6
{[%clk 0:02:53.4]} 10. Qe2 {[%clk 0:02:47.6]} 10... b5 {[%clk 0:02:49.7]} 11.
Nxd5 {[%clk 0:02:47.1]} 11... Qxd5 {[%clk 0:02:47.2]} 12. Be4 {[%clk 0:02:46]}
12... Qd6 {[%clk 0:02:45.4]} 13. Bf4 {[%clk 0:02:43.7]} 13... Qd7 {[%clk
0:02:28.9]} 14. Rac1 {[%clk 0:02:37.8]} 14... Bb7 {[%clk 0:02:28.4]} 15. Rxc6
{[%clk 0:02:37.8]} 15... Bxc6 {[%clk 0:02:21.8]} 16. Ne5 {[%clk 0:02:37.8]} 1-0

[Event "*** Titled Tuesday Blitz"]
[Site "Chess.com"]
[Date "2020.05.12"]
[Round "1"]
[White "Borsuk_Konstantin"]
[Black "ChessBitl"]
[Result "1-0"]
[WhiteElo "2650"]
[BlackElo "2327"]
[TimeControl "180+1"]
[EndTime "10:02:44 PDT"]
[Termination "Borsuk_Konstantin won by resignation"]

1. d4 {[%clk 0:03:00.9]} 1... Nf6 {[%clk 0:02:58.7]} 2. c4 {[%clk 0:03:00.9]}
2... g6 {[%clk 0:02:58.6]} 3. Nc3 {[%clk 0:03:00.8]} 3... Bg7 {[%clk 0:02:59.3]}
4. e4 {[%clk 0:02:59.9]} 4... d6 {[%clk 0:02:59.8]} 5. f3 {[%clk 0:02:56.4]}
5... O-O {[%clk 0:02:59.1]} 6. Be3 {[%clk 0:02:55.6]} 6... Nc6 {[%clk
0:02:59.5]} 7. Nge2 {[%clk 0:02:54.9]} 7... a6 {[%clk 0:02:59.8]} 8. Qd2 {[%clk
0:02:53]} 8... Rb8 {[%clk 0:02:59.7]} 9. Nc1 {[%clk 0:02:50.1]} 9... e5 {[%clk
0:02:58.3]} 10. d5 {[%clk 0:02:49.5]} 10... Nd4 {[%clk 0:02:57.2]} 11. N1e2
{[%clk 0:02:47.7]} 11... Nxe2 {[%clk 0:02:54.2]} 12. Bxe2 {[%clk 0:02:47.2]}
12... c5 {[%clk 0:02:53.2]} 13. dxc6 {[%clk 0:02:33.4]} 13... bxc6 {[%clk
0:02:52.3]} 14. O-O {[%clk 0:02:31.9]} 14... Be6 {[%clk 0:02:44.1]} 15. Rfd1
{[%clk 0:02:30.7]} 15... Qa5 {[%clk 0:02:40.8]} 16. b3 {[%clk 0:02:16.9]} 16...
Rfd8 {[%clk 0:02:37.4]} 17. Rac1 {[%clk 0:02:09.9]} 17... d5 {[%clk 0:02:13.1]}
18. Nxd5 {[%clk 0:02:05.2]} 18... cxd5 {[%clk 0:02:14]} 19. Qxa5 {[%clk
0:02:04.4]} 1-0

[Event "*** Titled Tuesday Blitz"]
[Site "Chess.com"]
[Date "2020.05.12"]
[Round "1"]
[White "AryanTari"]
[Black "HemantSharma"]
[Result "1-0"]
[WhiteElo "2928"]
[BlackElo "2455"]
[TimeControl "180+1"]
[EndTime "10:02:49 PDT"]
[Termination "AryanTari won by resignation"]

1. d4 {[%clk 0:03:00.9]} 1... d5 {[%clk 0:02:59.2]} 2. Bf4 {[%clk 0:03:01.3]}
2... Nf6 {[%clk 0:02:58.9]} 3. Nf3 {[%clk 0:03:00.4]} 3... c5 {[%clk 0:02:59]}
4. e3 {[%clk 0:02:58.8]} 4... e6 {[%clk 0:02:58.9]} 5. Nbd2 {[%clk 0:02:54.1]}
5... Nc6 {[%clk 0:02:58.8]} 6. c3 {[%clk 0:02:54]} 6... Bd6 {[%clk 0:02:58.7]}
7. Bg3 {[%clk 0:02:54.4]} 7... O-O {[%clk 0:02:58.5]} 8. Bb5 {[%clk 0:02:54.5]}
8... Ne7 {[%clk 0:02:56.8]} 9. Bd3 {[%clk 0:02:47.5]} 9... Qc7 {[%clk
0:02:46.2]} 10. Bxd6 {[%clk 0:02:38.7]} 10... Qxd6 {[%clk 0:02:46.9]} 11. Ne5
{[%clk 0:02:39.3]} 11... Ng6 {[%clk 0:02:38.1]} 12. f4 {[%clk 0:02:38.4]} 12...
b6 {[%clk 0:02:36.5]} 13. O-O {[%clk 0:02:37.5]} 13... Bb7 {[%clk 0:02:36.4]}
14. Qf3 {[%clk 0:02:33.4]} 14... Nd7 {[%clk 0:02:24.2]} 15. Rae1 {[%clk
0:02:23.7]} 15... Rae8 {[%clk 0:02:18]} 16. Qg3 {[%clk 0:02:23.6]} 16... Nf6
{[%clk 0:02:12.6]} 17. Bb5 {[%clk 0:02:14]} 17... Re7 {[%clk 0:02:07.5]} 18. f5
{[%clk 0:02:14.3]} 18... exf5 {[%clk 0:02:07.3]} 19. Nxg6 {[%clk 0:02:14.5]} 1-0

[Event "*** Titled Tuesday Blitz"]
[Site "Chess.com"]
[Date "2020.05.12"]
[Round "1"]
[White "Quaternitychess"]
[Black "zmarian"]
[Result "1-0"]
[WhiteElo "2518"]
[BlackElo "2148"]
[TimeControl "180+1"]
[EndTime "10:03:02 PDT"]
[Termination "Quaternitychess won by resignation"]

1. e4 {[%clk 0:02:57.7]} 1... g6 {[%clk 0:02:59.1]} 2. Nc3 {[%clk 0:02:56.4]}
2... Bg7 {[%clk 0:02:58.8]} 3. h4 {[%clk 0:02:57.3]} 3... h5 {[%clk 0:02:57.7]}
4. d4 {[%clk 0:02:56.7]} 4... c5 {[%clk 0:02:56.6]} 5. dxc5 {[%clk 0:02:55]}
5... Qa5 {[%clk 0:02:55.1]} 6. Nf3 {[%clk 0:02:53.3]} 6... Qxc5 {[%clk 0:02:44]}
7. Nd5 {[%clk 0:02:52.8]} 7... d6 {[%clk 0:02:36.9]} 8. c3 {[%clk 0:02:42.2]}
8... a6 {[%clk 0:02:29.9]} 9. Be3 {[%clk 0:02:41.5]} 9... Qa5 {[%clk 0:02:24.2]}
10. Bb6 {[%clk 0:02:41.1]} 10... Nc6 {[%clk 0:02:17.1]} 11. Bxa5 {[%clk
0:02:40.5]} 11... Nxa5 {[%clk 0:02:16.5]} 12. Nc7+ {[%clk 0:02:40.6]} 12... Kf8
{[%clk 0:02:14.6]} 13. Nxa8 {[%clk 0:02:41.5]} 13... Nc6 {[%clk 0:02:12.7]} 14.
Nb6 {[%clk 0:02:41.2]} 14... Bg4 {[%clk 0:02:12.1]} 15. Be2 {[%clk 0:02:39.2]}
15... Nf6 {[%clk 0:02:11.2]} 16. Ng5 {[%clk 0:02:38.5]} 16... Bxe2 {[%clk
0:02:07.6]} 17. Qxe2 {[%clk 0:02:38.3]} 17... Kg8 {[%clk 0:02:04.7]} 18. O-O-O
{[%clk 0:02:37.2]} 18... Bh6 {[%clk 0:02:02.7]} 19. f4 {[%clk 0:02:37]} 19...
Kg7 {[%clk 0:02:02.2]} 20. Kb1 {[%clk 0:02:33.3]} 20... Ng4 {[%clk 0:02:01.4]}
21. Nd5 {[%clk 0:02:30.6]} 21... e6 {[%clk 0:01:59.1]} 22. Ne3 {[%clk
0:02:30.2]} 1-0

[Event "*** Titled Tuesday Blitz"]
[Site "Chess.com"]
[Date "2020.05.12"]
[Round "1"]
[White "MishkaFighter"]
[Black "TheoSlade"]
[Result "0-1"]
[WhiteElo "2571"]
[BlackElo "2283"]
[TimeControl "180+1"]
[EndTime "10:03:06 PDT"]
[Termination "TheoSlade won by checkmate"]

1. Nf3 {[%clk 0:03:00.9]} 1... d5 {[%clk 0:03:00]} 2. b3 {[%clk 0:03:00.2]} 2...
Nf6 {[%clk 0:02:59.3]} 3. Bb2 {[%clk 0:03:01.1]} 3... e6 {[%clk 0:02:59.8]} 4.
e3 {[%clk 0:03:00.4]} 4... c5 {[%clk 0:03:00.2]} 5. c4 {[%clk 0:02:58.3]} 5...
Nc6 {[%clk 0:02:57.9]} 6. cxd5 {[%clk 0:02:58.2]} 6... exd5 {[%clk 0:02:55.2]}
7. Bb5 {[%clk 0:02:58.7]} 7... Bd6 {[%clk 0:02:52.4]} 8. O-O {[%clk 0:02:58.4]}
8... O-O {[%clk 0:02:52.4]} 9. d4 {[%clk 0:02:56.7]} 9... cxd4 {[%clk
0:02:45.3]} 10. Nxd4 {[%clk 0:02:54]} 10... Bd7 {[%clk 0:02:44.2]} 11. Nc3
{[%clk 0:02:50.3]} 11... Re8 {[%clk 0:02:43.3]} 12. Rc1 {[%clk 0:02:49.3]} 12...
Rc8 {[%clk 0:02:42.1]} 13. Nxc6 {[%clk 0:02:40.6]} 13... bxc6 {[%clk 0:02:40.6]}
14. Ba6 {[%clk 0:02:40.7]} 14... Rb8 {[%clk 0:02:39.9]} 15. Na4 {[%clk
0:02:40.7]} 15... Bxh2+ {[%clk 0:02:25.4]} 16. Kxh2 {[%clk 0:02:35.3]} 16...
Ng4+ {[%clk 0:02:25.7]} 17. Kg3 {[%clk 0:02:26.4]} 17... Qg5 {[%clk 0:02:11.2]}
18. Qd4 {[%clk 0:01:54.1]} 18... Nxe3+ {[%clk 0:01:59.1]} 19. Kh2 {[%clk
0:01:48.2]} 19... Qxg2# {[%clk 0:01:58.4]} 0-1

[Event "*** Titled Tuesday Blitz"]
[Site "Chess.com"]
[Date "2020.05.12"]
[Round "1"]
[White "Klaus1995"]
[Black "NormWeinstein"]
[Result "1-0"]
[WhiteElo "1780"]
[BlackElo "2453"]
[TimeControl "180+1"]
[EndTime "10:03:21 PDT"]
[Termination "Klaus1995 won by resignation"]

1. e4 {[%clk 0:02:59.7]} 1... c5 {[%clk 0:02:59]} 2. Nf3 {[%clk 0:02:58.9]} 2...
d6 {[%clk 0:02:59.2]} 3. d4 {[%clk 0:02:59]} 3... Nf6 {[%clk 0:02:59.3]} 4. Nc3
{[%clk 0:02:54.3]} 4... cxd4 {[%clk 0:02:59]} 5. Nxd4 {[%clk 0:02:55]} 5... Nc6
{[%clk 0:02:59.2]} 6. Be3 {[%clk 0:02:55.2]} 6... Ng4 {[%clk 0:02:58.4]} 7. Qd2
{[%clk 0:02:52.2]} 7... Nxe3 {[%clk 0:02:57.1]} 8. Qxe3 {[%clk 0:02:53.1]} 8...
g6 {[%clk 0:02:57]} 9. O-O-O {[%clk 0:02:52]} 9... Bg7 {[%clk 0:02:57]} 10. Bb5
{[%clk 0:02:48.6]} 10... Bd7 {[%clk 0:02:56]} 11. Nde2 {[%clk 0:02:45.9]} 11...
O-O {[%clk 0:02:53]} 12. Kb1 {[%clk 0:02:45.5]} 12... a6 {[%clk 0:02:49.9]} 13.
Bd3 {[%clk 0:02:41.4]} 13... Rc8 {[%clk 0:02:48.4]} 14. h4 {[%clk 0:02:39.9]}
14... Ne5 {[%clk 0:02:45.9]} 15. f3 {[%clk 0:02:38.4]} 15... Nc4 {[%clk
0:02:41.6]} 16. Qc1 {[%clk 0:02:37.4]} 16... Be6 {[%clk 0:02:28.6]} 17. Bxc4
{[%clk 0:02:34.5]} 17... Rxc4 {[%clk 0:02:27]} 18. Nd5 {[%clk 0:02:31.6]} 18...
Bxd5 {[%clk 0:02:16.5]} 19. Rxd5 {[%clk 0:02:32.5]} 19... Qc7 {[%clk 0:02:08.1]}
20. h5 {[%clk 0:02:28.2]} 20... Rc8 {[%clk 0:02:06.1]} 21. c3 {[%clk 0:02:25.8]}
21... b5 {[%clk 0:02:05.5]} 22. hxg6 {[%clk 0:02:20.6]} 22... hxg6 {[%clk
0:02:04.6]} 23. a3 {[%clk 0:02:00.4]} 23... Qb6 {[%clk 0:02:03.8]} 24. Qg1
{[%clk 0:01:57.9]} 24... a5 {[%clk 0:02:02.9]} 25. Qxb6 {[%clk 0:01:56.6]} 1-0

[Event "*** Titled Tuesday Blitz"]
[Site "Chess.com"]
[Date "2020.05.12"]
[Round "1"]
[White "grzechu96"]
[Black "AsselLesbekova"]
[Result "1-0"]
[WhiteElo "2607"]
[BlackElo "2289"]
[TimeControl "180+1"]
[EndTime "10:03:46 PDT"]
[Termination "grzechu96 won by resignation"]

1. e4 {[%clk 0:03:00.9]} 1... c5 {[%clk 0:02:51.9]} 2. Nf3 {[%clk 0:03:00.7]}
2... Nc6 {[%clk 0:02:51.6]} 3. Bb5 {[%clk 0:03:00.2]} 3... e6 {[%clk 0:02:50.7]}
4. O-O {[%clk 0:02:58.8]} 4... Nge7 {[%clk 0:02:41.9]} 5. Re1 {[%clk 0:02:58.7]}
5... a6 {[%clk 0:02:37.3]} 6. Bf1 {[%clk 0:02:58.7]} 6... d5 {[%clk 0:02:37.9]}
7. d3 {[%clk 0:02:59]} 7... dxe4 {[%clk 0:02:30.3]} 8. dxe4 {[%clk 0:02:57.6]}
8... Qxd1 {[%clk 0:02:28.2]} 9. Rxd1 {[%clk 0:02:58.5]} 9... Ng6 {[%clk
0:02:18.1]} 10. Be3 {[%clk 0:02:57.4]} 10... Be7 {[%clk 0:02:16.9]} 11. Nbd2
{[%clk 0:02:57.4]} 11... O-O {[%clk 0:02:16.4]} 12. c3 {[%clk 0:02:48.2]} 12...
e5 {[%clk 0:02:14.4]} 13. Nc4 {[%clk 0:02:45.5]} 13... Be6 {[%clk 0:02:12.2]}
14. Nb6 {[%clk 0:02:43.8]} 14... Rad8 {[%clk 0:02:09.6]} 15. Bc4 {[%clk
0:02:44.1]} 15... Bxc4 {[%clk 0:01:59.2]} 16. Nxc4 {[%clk 0:02:45]} 16... b5
{[%clk 0:01:59.2]} 17. Nb6 {[%clk 0:02:44.9]} 17... Bd6 {[%clk 0:01:52.6]} 18.
Rxd6 {[%clk 0:02:39.3]} 18... Rxd6 {[%clk 0:01:51.1]} 19. Bxc5 {[%clk
0:02:39.9]} 19... Rfd8 {[%clk 0:01:42.6]} 20. Bxd6 {[%clk 0:02:40.2]} 20... Rxd6
{[%clk 0:01:43.5]} 21. Nd5 {[%clk 0:02:40.5]} 21... f6 {[%clk 0:01:39.9]} 22.
Rd1 {[%clk 0:02:32.7]} 22... Kf7 {[%clk 0:01:31.3]} 23. Kf1 {[%clk 0:02:29.5]}
23... Nf4 {[%clk 0:01:26.8]} 24. Ne3 {[%clk 0:02:28.3]} 24... Nd3 {[%clk
0:01:19.5]} 25. Ne1 {[%clk 0:02:21.8]} 25... Nxe1 {[%clk 0:01:09.2]} 26. Rxd6
{[%clk 0:02:21.7]} 1-0

[Event "*** Titled Tuesday Blitz"]
[Site "Chess.com"]
[Date "2020.05.12"]
[Round "1"]
[White "cukin84"]
[Black "adriangschnitzer"]
[Result "0-1"]
[WhiteElo "2110"]
[BlackElo "2508"]
[TimeControl "180+1"]
[EndTime "10:03:53 PDT"]
[Termination "adriangschnitzer won by resignation"]

1. e4 {[%clk 0:02:56.6]} 1... c6 {[%clk 0:02:59.7]} 2. d4 {[%clk 0:02:56.1]}
2... d5 {[%clk 0:03:00.6]} 3. exd5 {[%clk 0:02:55]} 3... cxd5 {[%clk 0:03:01.5]}
4. Bd3 {[%clk 0:02:54.6]} 4... g6 {[%clk 0:03:00.3]} 5. c3 {[%clk 0:02:53.3]}
5... Bg7 {[%clk 0:03:00.7]} 6. h3 {[%clk 0:02:53]} 6... Bf5 {[%clk 0:03:01]} 7.
Bxf5 {[%clk 0:02:52.3]} 7... gxf5 {[%clk 0:03:01.9]} 8. Nf3 {[%clk 0:02:52.5]}
8... e6 {[%clk 0:03:02.1]} 9. Bf4 {[%clk 0:02:51.5]} 9... Nf6 {[%clk 0:03:01.9]}
10. Nbd2 {[%clk 0:02:50.8]} 10... O-O {[%clk 0:03:01.7]} 11. O-O {[%clk
0:02:50.3]} 11... Ne4 {[%clk 0:03:00.8]} 12. Ne5 {[%clk 0:02:49.1]} 12... Nd7
{[%clk 0:02:55.4]} 13. f3 {[%clk 0:02:45.3]} 13... Nxd2 {[%clk 0:02:54]} 14.
Qxd2 {[%clk 0:02:44]} 14... Nxe5 {[%clk 0:02:53.9]} 15. Bxe5 {[%clk 0:02:43.3]}
15... Bxe5 {[%clk 0:02:48.9]} 16. dxe5 {[%clk 0:02:42.9]} 16... Kh8 {[%clk
0:02:48.4]} 17. Rfe1 {[%clk 0:02:40]} 17... Rg8 {[%clk 0:02:47.2]} 18. Kh2
{[%clk 0:02:37.2]} 18... Qh4 {[%clk 0:02:42]} 19. Re2 {[%clk 0:02:23.8]} 19...
Rg3 {[%clk 0:02:25]} 20. Qd4 {[%clk 0:02:11.2]} 20... f4 {[%clk 0:02:19.4]} 21.
Rg1 {[%clk 0:02:02.8]} 21... Rag8 {[%clk 0:02:13.8]} 22. c4 {[%clk 0:02:00.4]}
22... dxc4 {[%clk 0:02:06.3]} 23. Qxc4 {[%clk 0:01:53.8]} 23... R8g6 {[%clk
0:01:55.6]} 24. Qc8+ {[%clk 0:01:50.8]} 24... Kg7 {[%clk 0:01:55.3]} 25. Rd2
{[%clk 0:01:41.7]} 25... Rh6 {[%clk 0:01:51.2]} 26. Rh1 {[%clk 0:01:33.1]} 26...
Qxh3+ {[%clk 0:01:48.4]} 0-1

[Event "*** Titled Tuesday Blitz"]
[Site "Chess.com"]
[Date "2020.05.12"]
[Round "1"]
[White "Indianlad"]
[Black "woodhy"]
[Result "1-0"]
[WhiteElo "2938"]
[BlackElo "2457"]
[TimeControl "180+1"]
[EndTime "10:03:54 PDT"]
[Termination "Indianlad won by resignation"]

1. Nf3 {[%clk 0:03:00.9]} 1... b6 {[%clk 0:02:55.5]} 2. e4 {[%clk 0:03:00.5]}
2... Bb7 {[%clk 0:02:56.4]} 3. Nc3 {[%clk 0:03:00.6]} 3... e6 {[%clk 0:02:54.8]}
4. d4 {[%clk 0:02:55.3]} 4... Nf6 {[%clk 0:02:45.7]} 5. e5 {[%clk 0:02:52.2]}
5... Ne4 {[%clk 0:02:43.1]} 6. Bd3 {[%clk 0:02:52.4]} 6... f5 {[%clk 0:02:42.7]}
7. Bxe4 {[%clk 0:02:38.1]} 7... Bxe4 {[%clk 0:02:34]} 8. Nxe4 {[%clk 0:02:37.1]}
8... fxe4 {[%clk 0:02:34.9]} 9. Ng5 {[%clk 0:02:37.6]} 9... d5 {[%clk
0:02:28.3]} 10. exd6 {[%clk 0:02:30.6]} 10... Bxd6 {[%clk 0:02:22.7]} 11. Qg4
{[%clk 0:02:28.6]} 11... Qf6 {[%clk 0:02:16.7]} 12. Nxe4 {[%clk 0:02:26.1]}
12... Qxd4 {[%clk 0:02:16.1]} 13. Qxe6+ {[%clk 0:02:25.2]} 13... Kf8 {[%clk
0:02:12.5]} 14. Nxd6 {[%clk 0:02:18.8]} 14... Qxd6 {[%clk 0:02:10]} 15. Qxd6+
{[%clk 0:02:18.4]} 15... cxd6 {[%clk 0:02:10.9]} 16. Bf4 {[%clk 0:02:18.8]}
16... Ke7 {[%clk 0:02:06.7]} 17. O-O-O {[%clk 0:02:19.4]} 17... Na6 {[%clk
0:02:06.5]} 18. Rhe1+ {[%clk 0:02:17.9]} 18... Kf7 {[%clk 0:02:06.5]} 19. Rxd6
{[%clk 0:02:17.8]} 19... Rhd8 {[%clk 0:02:06.5]} 20. Rxd8 {[%clk 0:02:10.7]}
20... Rxd8 {[%clk 0:02:05.9]} 21. Rd1 {[%clk 0:02:11.5]} 21... Rxd1+ {[%clk
0:01:56.7]} 22. Kxd1 {[%clk 0:02:11.8]} 22... Ke6 {[%clk 0:01:57.6]} 23. a3
{[%clk 0:02:11]} 23... Nc5 {[%clk 0:01:57.3]} 24. Be3 {[%clk 0:02:08.1]} 24...
Nd7 {[%clk 0:01:57]} 25. Ke2 {[%clk 0:02:05.7]} 25... Ke5 {[%clk 0:01:57.1]} 26.
b3 {[%clk 0:02:05]} 26... a6 {[%clk 0:01:55.5]} 27. Kd3 {[%clk 0:02:01.8]} 27...
Kd5 {[%clk 0:01:55.3]} 28. c4+ {[%clk 0:02:01.5]} 28... Ke5 {[%clk 0:01:53.3]}
29. Bd4+ {[%clk 0:02:01.6]} 29... Ke6 {[%clk 0:01:51.5]} 30. Bxg7 {[%clk
0:02:01.3]} 30... Nc5+ {[%clk 0:01:51.6]} 31. Kc2 {[%clk 0:02:02]} 31... Ne4
{[%clk 0:01:51.3]} 32. Bd4 {[%clk 0:02:01.8]} 32... b5 {[%clk 0:01:50.8]} 33.
Kd3 {[%clk 0:02:02.3]} 33... Nd6 {[%clk 0:01:49.6]} 34. cxb5 {[%clk 0:02:02.8]}
34... Nxb5 {[%clk 0:01:49.4]} 35. a4 {[%clk 0:02:00.5]} 35... Nc7 {[%clk
0:01:48.2]} 36. Kc4 {[%clk 0:01:58.5]} 36... Nd5 {[%clk 0:01:48.2]} 37. b4
{[%clk 0:01:57.5]} 1-0

[Event "*** Titled Tuesday Blitz"]
[Site "Chess.com"]
[Date "2020.05.12"]
[Round "1"]
[White "manitodeplomo"]
[Black "isla88"]
[Result "1-0"]
[WhiteElo "2615"]
[BlackElo "2296"]
[TimeControl "180+1"]
[EndTime "10:03:54 PDT"]
[Termination "manitodeplomo won by resignation"]

1. d4 {[%clk 0:02:56.7]} 1... Nf6 {[%clk 0:02:59.3]} 2. c4 {[%clk 0:02:55.8]}
2... e5 {[%clk 0:02:57.5]} 3. dxe5 {[%clk 0:02:55.1]} 3... Ng4 {[%clk 0:02:57]}
4. e3 {[%clk 0:02:55.7]} 4... Nxe5 {[%clk 0:02:55.8]} 5. Nc3 {[%clk 0:02:55]}
5... Bc5 {[%clk 0:02:40.2]} 6. Nge2 {[%clk 0:02:47.4]} 6... O-O {[%clk 0:02:30]}
7. Nf4 {[%clk 0:02:46.8]} 7... a5 {[%clk 0:02:18.7]} 8. Be2 {[%clk 0:02:46.7]}
8... Ra6 {[%clk 0:02:12.2]} 9. b3 {[%clk 0:02:39.5]} 9... Rh6 {[%clk 0:02:10.2]}
10. Bb2 {[%clk 0:02:39.6]} 10... d6 {[%clk 0:02:08.7]} 11. Qc2 {[%clk
0:02:39.4]} 11... Nbc6 {[%clk 0:02:06.1]} 12. a3 {[%clk 0:02:38.5]} 12... Qg5
{[%clk 0:02:00]} 13. Ne4 {[%clk 0:02:25.6]} 13... Qf5 {[%clk 0:01:46.6]} 14.
O-O-O {[%clk 0:02:25.1]} 14... Ba7 {[%clk 0:01:34]} 15. g4 {[%clk 0:02:24.5]}
15... Qd7 {[%clk 0:01:13.5]} 16. h4 {[%clk 0:02:11.1]} 16... Ng6 {[%clk
0:01:00.8]} 17. Nd5 {[%clk 0:02:07.7]} 17... Rxh4 {[%clk 0:00:55.5]} 18. Nef6+
{[%clk 0:02:04.4]} 1-0